Cogmind - Beta 13 @@@ ROGUE MODE // 2024.04.03 @ 22:38:57 Player: TiredKraken Result: Destroyed by G-47 Trooper with Particle Gun Performance ------------- Evolutions (0) 0 Regions Visited (1) 200 Robots Destroyed (5) 25 Value Destroyed (216) 216 Prototype IDs (0) 0 Alien Tech Used (0) 0 Bonus (0) 0 TOTAL SCORE: 441 Bonus ------- None Cogmind --------- Core Integrity 0/250 Matter 265/300 Energy 265/265 System Corruption 0% Temperature Cool (9) Movement Core (1550) Ox30 Location -10/Materials Parts ------- > --- POWER (1) -------- Reinforced Ion Engine > --- PROPULSION (2) --- (None) > --- UTILITY (2) ------ Huge Storage Unit > --- WEAPON (2) ------- Hammer > --- INVENTORY (25) --- Reinforced Ion Engine Cooling System Large Battery (200) Improved Targeting Computer Peak State ------------ > --- POWER ------------ Reinforced Ion Engine > --- PROPULSION ------- Aluminum Leg Aluminum Leg > --- UTILITY ---------- Cooling System Improved Targeting Computer > --- WEAPON ----------- EM Pulse Gun Medium Laser > --- INVENTORY -------- Light Ion Engine Wheel Wheel Small Laser Light Assault Rifle [Rating: 10] Favorites ----------- Power Reinforced Ion Engine Engine Reinforced Ion Engine Propulsion Hover Unit Leg Aluminum Leg Wheel Wheel Hover Unit Hover Unit Utility Light Armor Plating Device Cooling System Storage Huge Storage Unit Processor Improved Targeting Computer Protection Light Armor Plating Weapon Hammer Energy Gun Medium Laser Ballistic Gun Light Assault Rifle Impact Weapon Hammer Build | -11 -10 ------- Run | Yrd Mat Slots Evolved . | . . Power . | . . Propulsion . | . . Utility . | . . Weapon . | . . Parts Attached 19 | 7 12 Power 4 | 1 3 Engine 4 | 1 3 Core . | . . Reactor . | . . Propulsion 7 | 4 3 Treads . | . . Leg 2 | 2 . Wheel 4 | 2 2 Hover 1 | . 1 Flight . | . . Utility 4 | . 4 Device 1 | . 1 Storage 1 | . 1 Processor 1 | . 1 Hackware . | . . Protection 1 | . 1 Artifact . | . . Weapon 4 | 2 2 Energy Gun 2 | 2 . Energy Cannon . | . . Ballistic Gun 1 | . 1 Ballistic Cannon . | . . Launcher . | . . Special Weapon . | . . Impact Weapon 1 | . 1 Slashing Weapon . | . . Piercing Weapon . | . . Special Melee Weapon . | . . Unidentified Prototypes . | . . Parts Lost 8 | . 8 Power 1 | . 1 Propulsion 3 | . 3 Utility 2 | . 2 Weapon 2 | . 2 Highest Loss Streak 7 | . 7 To Critical Strikes . | . . Average Slot Usage (%) 68 | . 68 Engine 13 | . 13 Leg 2 | . 2 Wheel 1 | . 1 Hover 9 | . 9 Storage 9 | . 9 Processor 3 | . 3 Protection 12 | . 12 Energy Gun 1 | . 1 Ballistic Gun 4 | . 4 Impact Weapon 8 | . 8 Naked Turns . | . . Heaviest Build 95 | 7 95 Greatest Support 20 | 20 20 Greatest Overweight (x) 30 | . 30 Average Overweight (x) 4 | . 5 Largest Inventory Capacity 25 | 5 25 Average Capacity 17 | 5 19 Most Carried 5 | 4 5 Average Carried 3 | 3 3 Final Capacity 25 | 5 25 Final Carried 4 | 4 4 Class Distribution -------------------- 100% | Mutant Dominant Class ---------------- Mutant | -10/Materials Resources | -11 -10 ----------- Run | Yrd Mat Matter Collected 338 | 270 68 Remotely . | . . Salvage Created 259 | 42 217 Parts 9 | 1 8 Haulers Intercepted . | . . Recyclers Shooed . | . . Parts Field Recycled . | . . Retrieved Matter . | . . Parts Self-Destructed . | . . Prevented . | . . Kills | -11 -10 ------- Run | Yrd Mat Combat Hostiles Destroyed 5 | 1 4 Guns 5 | 1 4 Classes Destroyed 1 | 1 . Grunt 5 | 1 4 Best Kill Streak 1 | 1 1 Combat Bots Only 1 | 1 1 Max Kills in Single Turn 1 | 1 1 Gunslinging . | . . Exploded . | . . Melee . | . . Uniques/NPCs Destroyed . | . . Combat | -11 -10 -------- Run | Yrd Mat Hostile Shots Fired 107 | 10 97 Missed 31 | 4 27 Damage Taken 1024 | 66 958 Core 266 | . 266 Absorbed by Shields . | . . Core Remaining (%) 100 | 100 . Volleys Fired 49 | 6 43 Largest 2 | 1 2 Hottest 90 | 40 90 Shots Fired 53 | 6 47 Gun 53 | 6 47 Cannon . | . . Launcher . | . . Special . | . . Kinetic 23 | . 23 Thermal 20 | . 20 Explosive . | . . Electromagnetic 10 | 6 4 Robot Hit Streak 5 | 4 5 Robot Miss Streak 2 | 2 2 Penetration Max . | . . Secondary Targets 1 | . 1 Max Gunslinging Chain 1 | . 1 Shots Hit Robots 38 | 4 34 Core Hits 13 | 2 11 Critical Kills . | . . Critical Parts Destroyed . | . . Critical Strikes 1 | . 1 Burn 1 | . 1 Melee Attacks . | . . Impact . | . . Slashing . | . . Piercing . | . . Sneak Attacks . | . . Combat Hostiles . | . . Follow-up Attacks . | . . Damage Inflicted 461 | 55 406 Guns 424 | 55 369 Cannons . | . . Explosions 33 | . 33 Melee . | . . Ramming 4 | . 4 Kinetic 146 | . 146 Thermal 219 | . 219 Explosive . | . . Electromagnetic 92 | 55 37 Impact . | . . Slashing . | . . Piercing . | . . Highest Corruption . | . . Average Corruption . | . . Corruption Purged . | . . Corruption Blocked . | . . Overload Shots . | . . Overflow Damage . | . . Projectiles . | . . Explosions . | . . Melee . | . . Knockbacks . | . . Impact . | . . Kinetic . | . . Secondary . | . . Self-Inflicted Damage 2 | . 2 Shots . | . . Rammed 1 | . 1 Targets Rammed 1 | . 1 Kicked . | . . Crushed . | . . Highest Temperature 369 | 12 369 Average Temperature 158 | 6 170 Received Heat Transfer 669 | 36 633 Effects 2 | . 2 Shutdowns 1 | . 1 Short Circuit 1 | . 1 Siege Activations . | . . Robots Corrupted . | . . Combat Hostiles . | . . Parts Fried 1 | 1 . Impact Corruptions . | . . Robots Melted . | . . Combat Hostiles . | . . Parts Melted 1 | . 1 Heat Transferred 679 | . 679 Parts Sabotaged . | . . Parts Stolen . | . . Parts Stripped . | . . Power Chain Reactions 1 | . 1 Alert | -11 -10 ------- Run | Yrd Mat Peak Influence 100 | 20 100 Initial 13 | . 13 Average 23 | 10 26 Maximum Alert Level . | . . Low Security (%) 100 | 100 100 Level 1 . | . . Level 2 . | . . Level 3 . | . . Level 4 . | . . Level 5 . | . . High Security . | . . Max Security . | . . Squads Dispatched . | . . Investigation . | . . Extermination . | . . Reinforcement . | . . Assault . | . . Garrison . | . . Intercept . | . . Searches Triggered . | . . Construction Impeded . | . . Haulers Reinforced . | . . Active Scanning Responses . | . . Cargo Convoy Interrupts . | . . Stealth | -11 -10 --------- Run | Yrd Mat Distress Signals 1 | . 1 Communications Jammed . | . . Distress Signals . | . . Times Spotted 22 | 1 21 Peak Tracking Total 5 | 1 5 Tactical Retreats . | . . Traps | -11 -10 ------- Run | Yrd Mat Traps Triggered 1 | . 1 Indirectly . | . . Trap Hack Attempts . | . . Triggered . | . . Disarmed . | . . Reprogrammed . | . . Reused . | . . Traps Extracted . | . . Installed . | . . Triggered . | . . Machines | -11 -10 ---------- Run | Yrd Mat Machines Disabled 2 | . 2 Max in Single Turn 2 | . 2 Machines Repaired . | . . Machines Dismantled . | . . Machines Sabotaged . | . . Overloaded Fab Kills . | . . Hacking | -11 -10 --------- Run | Yrd Mat Machines Accessed 4 | . 4 Terminals 3 | . 3 Fabricators . | . . Repair Stations . | . . Recycling Units 1 | . 1 Scanalyzers . | . . Garrison Access . | . . Total Hacks 20 | . 20 Successful 11 | . 11 Failed 8 | . 8 Catastrophic 1 | . 1 Database Lockouts 1 | . 1 Manual 1 | . 1 Terminals 13 | . 13 Fabricators . | . . Repair Stations . | . . Recycling Units 7 | . 7 Scanalyzers . | . . Garrison Access . | . . Terminal Hacks 7 | . 7 Record 3 | . 3 Alert Level 1 | . 1 Locate Traps 1 | . 1 Reinforcement Status 1 | . 1 Hauler Manifests 1 | . 1 Fabricator Hacks . | . . Repair Station Hacks . | . . Recycling Unit Hacks 4 | . 4 Recycle Component 1 | . 1 Process 1 | . 1 Report Inventory 1 | . 1 Retrieve Components 1 | . 1 Scanalyzer . | . . Garrison Access Hacks . | . . Unauthorized Hacks . | . . Terminals . | . . Fabricators . | . . Repair Stations . | . . Recycling Units . | . . Scanalyzers . | . . Garrison Access . | . . Data Cores Recovered . | . . Used . | . . Hacking Detections 4 | . 4 Full Trace Events 1 | . 1 Feedback Events . | . . Feedback Blocked . | . . Robot Schematics Acquired . | . . Robots Built . | . . Authchips . | . . Time . | . . Total Robot Build Rating . | . . Part Schematics Acquired . | . . Parts Built . | . . Authchips . | . . Time . | . . Total Part Build Rating . | . . Parts Repaired . | . . Time . | . . Parts Recycled 1 | . 1 Recycled Matter 165 | . 165 Retrieved Matter . | . . Retrieved Components . | . . Parts Scanalyzed . | . . Part Schematics Acquired . | . . Parts Damaged . | . . Bothacking | -11 -10 ------------ Run | Yrd Mat Used RIF Installer . | . . Robots Hacked . | . . Non-combat . | . . Combat . | . . Robot Hacks Applied . | . . Relay Couplers Released . | . . Fabnet Peak Effective % . | . . Robots Rewired . | . . Allies Hacked . | . . Hacks Repelled . | . . Allies | -11 -10 -------- Run | Yrd Mat Total Allies . | . . Largest Group . | . . Highest-Rated Group . | . . Highest-Rated Ally . | . . Total Orders . | . . Ally Attacks . | . . Total Damage . | . . Kills . | . . Allies Corrupted . | . . Allies Melted . | . . Intel | -11 -10 ------- Run | Yrd Mat Robot Analysis Total . | . . Derelict Logs Recovered . | . . Drone Launches . | . . Drone Recoveries . | . . Exploration | -11 -10 ------------- Run | Yrd Mat Turns Passed 1638 | 229 1409 Spaces Moved 443 | 125 318 Core 174 | 27 147 Treads . | . . Legs 147 | 95 52 Wheels 17 | 3 14 Hover 105 | . 105 Flight . | . . Fastest Speed 50 | 50 80 Average Speed 322 | 103 408 Slowest Speed 1550 | 120 1550 Overloaded Moves . | . . Propulsion Burnouts . | . . Robots Hopped . | . . Cave-ins Triggered . | . . Exploration Rate (%) 28 | 7 50 Regions Visited 1 Branch Regions . Pre-discovered Areas . | . . Known Exits Taken . | . . Unknown Exits Taken 1 | 1 . Scrap Searched . | . . Spaces Dug . | . . Terrain Destroyed 3 | . 3 Melee . | . . Projectile . | . . AOE 3 | . 3 Terrain Rammed . | . . Walls Destroyed . | . . Machines Disabled . | . . Actions | -11 -10 --------- Run | Yrd Mat Total 610 | 219 391 Wait 72 | 71 1 Move 442 | 124 318 Hop . | . . Pick Up 20 | 9 11 Fast Attach 2 | . 2 Attach 16 | 7 9 Detach 2 | 2 . Swap 1 | . 1 Drop 5 | . 5 Fire 49 | 6 43 Melee . | . . Ram 1 | . 1 Kick . | . . Crush . | . . Escape Stasis . | . . Rewire . | . . Trap . | . . Miscellaneous . | . . Route ------- -11/Scrapyard -10/Materials (discovered 1 exit: [*Min]) History --------- Turn | Location | Event 2 | -11/Scrapyard | Met Revision 17 88 | -11/Scrapyard | Discovered new exit (range 8) 230 | -11/Scrapyard | Entered Materials 306 | -10/Materials | Build established: Mutant 356 | -10/Materials | Core integrity fell below 50% 432 | -10/Materials | Lost 7 parts (1p3n1u2w) 448 | -10/Materials | Central database locked down 504 | -10/Materials | Discovered new exit (range 16) 1595 | -10/Materials | Core integrity fell below 20% 1639 | -10/Materials | Destroyed by G-47 Trooper with Particle Gun Last Messages --------------- [Achievement: Shopping List] >>Manifests Retrieving manifest data... Found 2 haulers: A-02 Transporter 1x Assault Rifle 2x Huge Storage Unit A-02 Transporter 3x Grenade Launcher K-01 Serf cleans the Atomic Centrifuge. K-01 Serf cleans the Hadron Collector. K-01 Serf cleans the Atomic Centrifuge. G-34 Mercenary destroyed. K-01 Serf collects debris. R-06 Scavenger collects Heat Sink. Lgt. Armor Plating destroyed. Critical hit (Burn: +37). Dropped Hover Unit. Critical hit (Burn: +37). [Achievement: First Step to Greatness] Map ----- +----------------------------------------------------+ | %"" # """ #????# """ """ #?????????? | | % # """ ###### ^""" """ #?????????? | | ####### """ """ #?????????? | | ## ########?????# #?????????? | | ## #????????????# #?????????? | | # #????????????# #?????????? | | # +????????????# ########## #?????????? | | # #^??????????####+##### # ##+###????? | | # #???????????# # + #?? | | # #???????????# """ # # #?? | | #?????#???????????# """ # # #?? | | #?????????????????# """ # #######+###+#?? | | #?????????????????# # #?????????????? | | ##?????????????????#"" """ # #?????????????? | | ???????????????????#"T """ # #?????????????? | | ???????????????????#"" """ # #?????????????? | | ???????????????????# # #?????????????? | | ???????????????????########## #?????????????? | | ????????????????????????????# #?????????????? | | ????????????????????????????# #?????????????? | | ????????????????????????????#####+##?????????????? | | ????????????????????????????????# #??????????????? | | ????????????????????????????????# #??????????????? | | ????????????????????????????????# #??????????????? | | ?????????????????################ #??????????????? | | ?????????? @= r #??????????????? | | ?????????? a#####kg ####??????????????? | | ?????????? ??????????# #?????????????????? | | ??????????????????????????# #?????????????????? | | ??????????????????????????# #?????????????????? | | ??????????????????????????# #?????????????????? | | ??????????????????????????# #?????????????????? | | ??????????????????????????# #?????????????????? | | ??????????????????????????# =#?????????????????? | | ??????????????????????????# [%#?????????????????? | | ??????????????????????????# !=?????????????????? | | ??????????????????????????# ?????????????????? | | ??????????????????????????# ????????????????? | | ??????????????????????????# ????????????????? | | ??????????????????????????# ????????????????? | | ??????????????????????????# ????????????????? | | ??????????????????????????#### ##????????????????? | | ?????????????????????????????? ??????????????????? | | ?????????????????????????????? ??????????????????? | | ?????????????????????????????????????????????????? | | ?????????????????????????????????????????????????? | | ?????????????????????????????????????????????????? | | ?????????????????????????????????????????????????? | | ?????????????????????????????????????????????????? | | ?????????????????????????????????????????????????? | +----------------------------------------------------+ Best States ------------- Heat Dissipation 47 Energy Generation 12 Energy Capacity 265 Matter Stores 300 Matter Capacity 300 Sight Range 16 Terrain Scan Density 10 Armor Coverage 150 Evasion (%) 55 Targeting Accuracy 6 Item Schematics ----------------- None Robot Schematics ------------------ None Fabricated ------------ Nothing Alien Tech Used ----------------- None Achievements -------------- First Step to Greatness Shopping List Challenges ------------ None Game ------ Seed NeutronBackupFragment Manual? 0 Play Time 00:25:08 Cumulative 0.4 hours Start 2024.04.03 @ 22:12:38 End 2024.04.03 @ 22:38:57 Sessions 1 Manual Loads 0 Difficulty Rogue Special Mode None Game No. 1 Rogue 1 Adventurer 0 Explorer 0 Win Type - Total 0 Types 0/0/0/0/0/0/0/0/0 Lore% 0 Gallery% 1 Achievement% 0 Wizard Run 0 Options --------- Layout 1 ASCII 0 Keyboard 0 Movement Mouse Keybinds 0 Fullscreen 1 Font 32/SmallcapsGlow Map View 50x35 Zoom Use 0% Tactical HUD 0 Map Filters NONE Filters NONE Steam 1 RUN: d62c735a-72de-4d7e-b06e-30d89795bc1a